Cogmind - Beta 15 @@@ ROGUE MODE // 2025.05.23 @ 16:45:04 Player: Cinder Result: Destroyed by B-75 Beast with Heavy Plasma Cannon Performance ------------- Evolutions (4) 2000 Regions Visited (6) 1200 Robots Destroyed (37) 185 Value Destroyed (1016) 1016 Prototype IDs (2) 40 Alien Tech Used (0) 0 Bonus (0) 0 TOTAL SCORE: 4441 Bonus ------- None Cogmind --------- Core Integrity 0/850 Matter 260/300 Energy 81/100 System Corruption 4% Temperature Cool (12) Movement Core (50) Location -6/Extension Parts ------- > --- POWER (1) -------- (None) > --- PROPULSION (5) --- Wheel > --- UTILITY (5) ------ Advanced Targeting Computer Improved Target Analyzer Improved Target Analyzer Improved Target Analyzer > --- WEAPON (4) ------- (None) > --- INVENTORY (5) ---- Light Deuterium Engine Carbon-fiber Leg Improved Field Recycling Unit (0) Peak State ------------ > --- POWER ------------ Improved Ion Engine > --- PROPULSION ------- Aluminum Leg Improved Aluminum Leg Carbon-fiber Leg Armored Huge Wheel > --- UTILITY ---------- Large Storage Unit Structural Scanner Advanced Targeting Computer Improved Light Armor Plating > --- WEAPON ----------- Pulse Rifle Light Assault Rifle Light Assault Rifle > --- INVENTORY -------- Light Deuterium Engine Light Nuclear Core Light Nuclear Core Light Treads Improved Treads Advanced Treads Wheel Wheel Large Storage Unit Advanced Targeting Computer Improved Field Recycling Unit Ion Cannon Minigun [Rating: 32] Favorites ----------- Power Ion Engine Engine Ion Engine Power Core Light Nuclear Core Propulsion Aluminum Leg Treads Advanced Treads Leg Aluminum Leg Wheel Armored Huge Wheel Flight Unit VTOL Module Utility Large Storage Unit Device Structural Scanner Storage Large Storage Unit Processor Targeting Computer Protection Improved Light Armor Plating Weapon Light Cannon Energy Gun Pulse Rifle Energy Cannon Ion Cannon Ballistic Gun Light Assault Rifle Ballistic Cannon Light Cannon Build | -11 -10 -9 -8 -7 -6 -6 ------- Run | Yrd Mat Mat Mat Fac Fac Ext Slots Evolved 8 | . . 2 2 2 2 . Power . | . . . . . . . Propulsion 3 | . . 2 1 . . . Utility 3 | . . . . 1 2 . Weapon 2 | . . . 1 1 . . Parts Attached 43 | 6 1 9 12 1 10 4 Power 5 | 1 . . 3 . 1 . Engine 4 | 1 . . 3 . . . Core 1 | . . . . . 1 . Reactor . | . . . . . . . Propulsion 16 | 2 . 4 4 . 5 1 Treads 2 | . . . . . 2 . Leg 9 | 2 . 3 4 . . . Wheel 3 | . . 1 . . 1 1 Hover . | . . . . . . . Flight 2 | . . . . . 2 . Utility 10 | 1 . 3 1 1 1 3 Device 1 | . . . . 1 . . Storage 3 | 1 . 2 . . . . Processor 5 | . . 1 1 . . 3 Hackware . | . . . . . . . Protection 1 | . . . . . 1 . Artifact . | . . . . . . . Weapon 12 | 2 1 2 4 . 3 . Energy Gun 2 | 1 . . 1 . . . Energy Cannon 1 | . . . . . 1 . Ballistic Gun 5 | 1 . 1 1 . 2 . Ballistic Cannon 4 | . 1 1 2 . . . Launcher . | . . . . . . . Special Weapon . | . . . . . . . Impact Weapon . | . . . . . . . Slashing Weapon . | . . . . . . . Piercing Weapon . | . . . . . . . Special Melee Weapon . | . . . . . . . Unidentified Prototypes . | . . . . . . . Parts Lost 28 | . . 4 7 1 12 4 Power 4 | . . 1 1 . 2 . Propulsion 13 | . . 2 3 . 5 3 Utility 2 | . . . . . 1 1 Weapon 9 | . . 1 3 1 4 . Highest Loss Streak 7 | . . 4 4 1 7 3 To Critical Strikes 1 | . . . . . 1 . Average Backups 10 | 3 7 7 12 13 12 4 Power 2 | . 1 1 2 3 3 1 Propulsion 4 | 2 4 3 5 5 4 2 Utility 1 | . . . 2 3 2 1 Weapon 1 | . 1 2 2 2 1 . Tool/Special . | . . . . . . . Unused Backups 14 | . 2 . 3 1 5 3 Power 4 | . . . 1 . 2 1 Propulsion 5 | . 1 . 2 . 1 1 Utility 4 | . . . . 1 2 1 Weapon 1 | . 1 . . . . . Tool/Special . | . . . . . . . Average Slot Usage (%) 74 | . 85 73 89 75 66 36 Engine 6 | . 14 7 7 7 4 . Leg 22 | . 28 20 36 23 11 . Wheel 1 | . . 2 . . 4 . Flight 1 | . . . . . . 11 Device 2 | . . . . 7 6 5 Storage 8 | . 14 11 9 7 5 . Processor 8 | . . 9 9 7 6 17 Energy Gun 3 | . 7 . 2 7 4 . Ballistic Gun 9 | . 14 11 8 7 10 . Ballistic Cannon 8 | . 6 11 15 6 . . Peak Build Rating 32 | 6 6 11 19 21 32 24 Average Rating 15 | 4 6 7 14 20 28 17 On Entrance 10 | . 6 6 10 19 20 9 Naked Turns . | . . . . . . . Heaviest Build 36 | 13 14 26 34 35 36 1 Greatest Support 53 | 20 20 33 53 38 45 8 Greatest Overweight (x) 1 | 1 . 1 1 . 1 . Average Overweight (x) . | . . . . . . . Largest Inventory Capacity 15 | 8 8 15 15 15 15 5 Average Capacity 11 | 7 8 8 15 15 14 5 Most Carried 15 | 6 8 10 15 14 14 5 Average Carried 10 | 4 7 7 12 13 12 4 Final Capacity 15 | 8 8 15 15 15 5 5 Final Carried 14 | 6 8 9 14 14 5 3 Class Distribution -------------------- 37% | Mutant 34% | Gunner 15% | Scavenger-Gunner 8% | Sprinter 3% | Scavenger-Mutant Dominant Class ---------------- Mutant | -10/Materials Mutant | -9/Materials Scavenger-Gunner | -8/Materials Gunner | -7/Factory Gunner | -6/Factory Sprinter | -6/Extension Resources | -11 -10 -9 -8 -7 -6 -6 ----------- Run | Yrd Mat Mat Mat Fac Fac Ext Matter Collected 1193 | 226 69 190 564 27 117 . Remotely . | . . . . . . . Salvage Created 892 | . 45 251 471 . 125 . Parts 59 | . 6 16 29 . 8 . Haulers Intercepted 1 | . . . 1 . . . Recyclers Shooed 2 | . . . 2 . . . Parts Field Recycled . | . . . . . . . Retrieved Matter . | . . . . . . . Parts Self-Destructed . | . . . . . . . Prevented . | . . . . . . . Kills | -11 -10 -9 -8 -7 -6 -6 ------- Run | Yrd Mat Mat Mat Fac Fac Ext Combat Hostiles Destroyed 36 | . 4 9 18 . 5 . Guns 16 | . 2 8 5 . 1 . Cannons 20 | . 2 1 13 . 4 . Classes Destroyed 4 | . 1 2 1 . . . Hauler 1 | . . . 1 . . . Swarmer 20 | . 4 4 8 . 4 . Grunt 13 | . . 3 9 . 1 . Sentry 3 | . . 2 1 . . . Best Kill Streak 6 | . 4 4 6 . 4 . Combat Bots Only 5 | . 4 4 5 . 4 . Max Kills in Single Turn 2 | . 1 1 2 . 1 . Gunslinging . | . . . . . . . Exploded . | . . . . . . . Melee . | . . . . . . . Uniques/NPCs Destroyed . | . . . . . . . Combat | -11 -10 -9 -8 -7 -6 -6 -------- Run | Yrd Mat Mat Mat Fac Fac Ext Hostile Shots Fired 452 | . 12 58 97 63 155 67 Missed 139 | . 6 14 23 24 40 32 Hits 313 | . 6 44 74 39 115 35 Projectile 313 | . 6 44 74 39 115 35 Critical Strikes 8 | . . 1 3 . 4 . Damage Taken 4297 | . 49 550 1041 286 1839 532 Core 1160 | . 26 97 119 41 479 398 Absorbed by Shields 20 | . . . . . . 20 Core Remaining (%) 87 | 100 89 75 78 94 . . Volleys Fired 112 | . 6 30 50 4 22 . Largest 3 | . 2 2 3 3 3 . Hottest 113 | . 50 50 113 113 108 . Shots Fired 278 | . 12 60 142 12 52 . Gun 130 | . 6 30 51 8 35 . Cannon 148 | . 6 30 91 4 17 . Launcher . | . . . . . . . Special . | . . . . . . . Kinetic 244 | . 12 60 134 8 30 . Thermal 34 | . . . 8 4 22 . Explosive . | . . . . . . . Electromagnetic . | . . . . . . . Robot Hit Streak 19 | . 2 17 9 13 19 . Robot Miss Streak 6 | . 2 4 4 . 6 . Penetration Max . | . . . . . . . Secondary Targets . | . . . . . . . Shots Hit Robots 170 | . 5 42 80 12 31 . Core Hits 69 | . 5 18 30 3 13 . Critical Kills . | . . . . . . . Critical Parts Destroyed . | . . . . . . . Critical Strikes 6 | . 1 1 4 . . . Blast 6 | . 1 1 4 . . . Melee Attacks . | . . . . . . . Impact . | . . . . . . . Slashing . | . . . . . . . Piercing . | . . . . . . . Sneak Attacks . | . . . . . . . Combat Hostiles . | . . . . . . . Follow-up Attacks . | . . . . . . . Damage Inflicted 2624 | . 74 476 1334 165 575 . Guns 1015 | . 23 237 387 102 266 . Cannons 1542 | . 51 235 916 63 277 . Explosions . | . . . . . . . Melee . | . . . . . . . Ramming 67 | . . 4 31 . 32 . Kinetic 2061 | . 74 472 1187 96 232 . Thermal 496 | . . . 116 69 311 . Explosive . | . . . . . . . Electromagnetic . | . . . . . . . Impact . | . . . . . . . Slashing . | . . . . . . . Piercing . | . . . . . . . Highest Corruption 4 | . . . 2 . 4 4 Average Corruption 3 | . . . 2 . 4 4 Corruption Purged . | . . . . . . . Corruption Blocked . | . . . . . . . Effects 16 | . . . 4 . 8 4 Message Errors 3 | . . . . . 1 2 Matter Fused 3 | . . . 1 . 1 1 Heat Flow Errors 2 | . . . 1 . . 1 Energy Discharges 4 | . . . 1 . 3 . Parts Fused 1 | . . . . . 1 . Data Loss (minor) 2 | . . . 1 . 1 . Alerts 1 | . . . . . 1 . Overload Shots . | . . . . . . . Overflow Damage . | . . . . . . . Projectiles . | . . . . . . . Explosions . | . . . . . . . Melee . | . . . . . . . Knockbacks 20 | . . 2 18 . . . Impact . | . . . . . . . Kinetic 19 | . . 2 17 . . . Secondary 1 | . . . 1 . . . Self-Inflicted Damage 6 | . . . . . 6 . Shots . | . . . . . . . Rammed 7 | . . . . . 7 . Targets Rammed 15 | . . 1 4 1 9 . Kicked 8 | . . 1 4 1 2 . Crushed . | . . . . . . . Highest Temperature 340 | . 20 31 340 122 281 239 Average Temperature 73 | . 9 7 81 68 111 124 Received Heat Transfer 1149 | . . 219 504 72 225 129 Effects 2 | . . . 1 . 1 . Shutdowns 1 | . . . 1 . . . Interference 1 | . . . . . 1 . Siege Activations . | . . . . . . . Martial Activations . | . . . . . . . Shielding Activations . | . . . . . . . Robots Disrupted . | . . . . . . . Combat Hostiles . | . . . . . . . Robots Corrupted . | . . . . . . . Combat Hostiles . | . . . . . . . Parts Fried . | . . . . . . . Impact Corruptions 1 | . . . 1 . . . Robots Melted . | . . . . . . . Combat Hostiles . | . . . . . . . Parts Melted . | . . . . . . . Heat Transferred 925 | . . . 259 148 518 . Parts Sabotaged . | . . . . . . . Parts Stolen . | . . . . . . . Parts Stripped . | . . . . . . . Power Chain Reactions . | . . . . . . . Alert | -11 -10 -9 -8 -7 -6 -6 ------- Run | Yrd Mat Mat Mat Fac Fac Ext Maximum Alert Level . | . . . . . . . Low Security (%) 100 | 100 100 100 100 100 100 100 Level 1 . | . . . . . . . Level 2 . | . . . . . . . Level 3 . | . . . . . . . Level 4 . | . . . . . . . Level 5 . | . . . . . . . High Security . | . . . . . . . Max Security . | . . . . . . . Peak Influence 195 | . 98 92 195 76 100 163 Initial 76 | . . 37 8 76 2 30 Average 55 | . 23 24 129 48 7 50 Influence Increases 1228 | . 118 239 488 . 140 243 Destroy 0b10 Robot/C 800 | . 80 180 360 . 100 80 Destroy 0b10 Robot/NC 5 | . . . 5 . . . Destroy Leader 132 | . 20 40 52 . 10 10 Allied During Kill 4 | . . . . . . 4 Successful Hack 82 | . 18 16 9 . . 39 Disable Machine 30 | . . . . . 30 . Destroy Structure 10 | . . 3 2 . . 5 Partial Spotted 15 | . . . . . . 15 Lose Combat Pursuer 150 | . . . 60 . . 90 Influence Decreases 1105 | . 30 306 341 162 84 182 Entered New Map 192 | . . 51 13 92 4 32 Time Decay 601 | . 30 133 258 60 30 90 Lost Part 210 | . . 40 70 10 50 40 Lost Ally 20 | . . . . . . 20 Purge Threat 82 | . . 82 . . . . Squads Dispatched 5 | . . . 1 . . 4 Investigation 4 | . . . . . . 4 Extermination . | . . . . . . . Reinforcement 1 | . . . 1 . . . Assault . | . . . . . . . Garrison . | . . . . . . . Intercept . | . . . . . . . Searches Triggered . | . . . . . . . Construction Impeded . | . . . . . . . Haulers Reinforced . | . . . . . . . Active Scanning Responses . | . . . . . . . Cargo Convoy Interrupts . | . . . . . . . Stealth | -11 -10 -9 -8 -7 -6 -6 --------- Run | Yrd Mat Mat Mat Fac Fac Ext Distress Signals 6 | . . 1 4 . . 1 Communications Jammed . | . . . . . . . Distress Signals . | . . . . . . . Times Spotted 67 | . 8 11 24 1 9 14 Peak Tracking Total 8 | . 6 4 8 1 7 7 Tactical Retreats 6 | . . . 3 . . 3 Traps | -11 -10 -9 -8 -7 -6 -6 ------- Run | Yrd Mat Mat Mat Fac Fac Ext Traps Triggered 4 | . . . 1 . . 3 Indirectly . | . . . . . . . Trap Hack Attempts . | . . . . . . . Triggered . | . . . . . . . Disarmed . | . . . . . . . Reprogrammed . | . . . . . . . Reused . | . . . . . . . Traps Extracted . | . . . . . . . Installed . | . . . . . . . Triggered . | . . . . . . . Machines | -11 -10 -9 -8 -7 -6 -6 ---------- Run | Yrd Mat Mat Mat Fac Fac Ext Machines Disabled 2 | . . . . . 2 . Max in Single Turn 1 | . . . . . 1 . Garrison Access 1 | . . . . . 1 . Machines Repaired . | . . . . . . . Machines Dismantled . | . . . . . . . Machines Sabotaged . | . . . . . . . Overloaded Fab Kills . | . . . . . . . Hacking | -11 -10 -9 -8 -7 -6 -6 --------- Run | Yrd Mat Mat Mat Fac Fac Ext Machines Accessed 22 | . 4 2 2 2 1 11 Terminals 18 | . 3 2 2 1 . 10 Fabricators . | . . . . . . . Repair Stations . | . . . . . . . Recycling Units 2 | . 1 . . . . 1 Scanalyzers . | . . . . . . . Garrison Access 2 | . . . . 1 1 . Total Hacks 58 | . 12 6 5 5 1 29 Successful 25 | . 7 4 3 . 1 10 Failed 33 | . 5 2 2 5 . 19 Catastrophic 6 | . 1 . . . . 5 Database Lockouts . | . . . . . . . Manual . | . . . . . . . Terminals 49 | . 9 6 5 3 . 26 Fabricators . | . . . . . . . Repair Stations . | . . . . . . . Recycling Units 6 | . 3 . . . . 3 Scanalyzers . | . . . . . . . Garrison Access 3 | . . . . 2 1 . Terminal Hacks 22 | . 5 4 3 . . 10 Part Schematic 1 | . . . . . . 1 Prototype ID Bank 1 | . . 1 . . . . Open Door 6 | . . . . . . 6 Branch Access Points 1 | . 1 . . . . . Emergency Access Points 1 | . . 1 . . . . Unreport Threat 1 | . . 1 . . . . Locate Traps 2 | . . . 1 . . 1 Transport Status 2 | . 1 . 1 . . . Recall Reinforcements 1 | . 1 . . . . . Hauler Manifests 3 | . 2 . . . . 1 Registered Components 1 | . . 1 . . . . Zone Layout 2 | . . . 1 . . 1 Fabricator Hacks . | . . . . . . . Repair Station Hacks . | . . . . . . . Recycling Unit Hacks 2 | . 2 . . . . . Process 1 | . 1 . . . . . Retrieve Matter 1 | . 1 . . . . . Scanalyzer . | . . . . . . . Garrison Access Hacks 1 | . . . . . 1 . Seal Access 1 | . . . . . 1 . Unauthorized Hacks . | . . . . . . . Terminals . | . . . . . . . Fabricators . | . . . . . . . Repair Stations . | . . . . . . . Recycling Units . | . . . . . . . Scanalyzers . | . . . . . . . Garrison Access . | . . . . . . . Data Cores Recovered . | . . . . . . . Used . | . . . . . . . Hacking Detections 13 | . 3 . 1 2 . 7 Full Trace Events 4 | . . . . . . 4 Feedback Events . | . . . . . . . Feedback Blocked . | . . . . . . . Robot Schematics Acquired . | . . . . . . . Robots Built . | . . . . . . . Authchips . | . . . . . . . Time . | . . . . . . . Total Robot Build Rating . | . . . . . . . Part Schematics Acquired 1 | . . . . . . 1 Parts Built . | . . . . . . . Authchips . | . . . . . . . Time . | . . . . . . . Total Part Build Rating . | . . . . . . . Parts Repaired . | . . . . . . . Time . | . . . . . . . Parts Recycled . | . . . . . . . Recycled Matter 5 | . 5 . . . . . Retrieved Matter 5 | . 5 . . . . . Retrieved Components . | . . . . . . . Parts Scanalyzed . | . . . . . . . Part Schematics Acquired . | . . . . . . . Parts Damaged . | . . . . . . . Bothacking | -11 -10 -9 -8 -7 -6 -6 ------------ Run | Yrd Mat Mat Mat Fac Fac Ext Used RIF Installer . | . . . . . . . Robots Hacked . | . . . . . . . Non-combat . | . . . . . . . Combat . | . . . . . . . Robot Hacks Applied . | . . . . . . . Relay Couplers Released . | . . . . . . . Fabnet Peak Effective % . | . . . . . . . Robots Rewired . | . . . . . . . Allies Hacked . | . . . . . . . Hacks Repelled . | . . . . . . . Allies | -11 -10 -9 -8 -7 -6 -6 -------- Run | Yrd Mat Mat Mat Fac Fac Ext Total Allies 7 | . . . . . . 7 Largest Group 6 | . . . . . . 6 Highest-Rated Group 199 | . . . . . . 199 Highest-Rated Ally 39 | . . . . . . 39 Total Orders . | . . . . . . . Ally Attacks 35 | . . . . . . 35 Total Damage 446 | . . . . . . 446 Kills 4 | . . . . . . 4 Allies Corrupted . | . . . . . . . Allies Melted . | . . . . . . . Intel | -11 -10 -9 -8 -7 -6 -6 ------- Run | Yrd Mat Mat Mat Fac Fac Ext Active Infowar (turns) 713 | . . . . 126 410 177 Structural 713 | . . . . 126 410 177 Robot Analysis Total . | . . . . . . . Derelict Logs Recovered . | . . . . . . . Drone Launches . | . . . . . . . Drone Recoveries . | . . . . . . . Exploration | -11 -10 -9 -8 -7 -6 -6 ------------- Run | Yrd Mat Mat Mat Fac Fac Ext Turns Passed 1973 | 70 191 394 598 126 410 184 Spaces Moved 1431 | 47 140 223 308 82 218 413 Core 21 | 9 . . . . . 12 Treads 9 | . . . . . 9 . Legs 885 | 38 140 221 308 82 96 . Wheels 86 | . . 2 . . 84 . Hover . | . . . . . . . Flight 430 | . . . . . 29 401 Fastest Speed 32 | 50 120 80 120 120 32 32 Average Speed 96 | 112 120 123 121 120 125 32 Slowest Speed 190 | 120 120 190 190 120 190 50 Overloaded Moves . | . . . . . . . Propulsion Burnouts . | . . . . . . . Robots Hopped 4 | . . . . . . 4 Potential Cave-ins . | . . . . . . . Cave-ins Triggered . | . . . . . . . Exploration Rate (%) 20 | 4 30 25 21 4 6 50 Regions Visited 6 Branch Regions 1 Pre-discovered Areas . | . . . . . . . Known Exits Taken . | . . . . . . . Unknown Exits Taken 6 | 1 1 1 1 1 1 . Scrap Searched . | . . . . . . . Spaces Dug . | . . . . . . . Terrain Destroyed . | . . . . . . . Melee . | . . . . . . . Projectile . | . . . . . . . AOE . | . . . . . . . Terrain Rammed . | . . . . . . . Walls Destroyed . | . . . . . . . Machines Disabled . | . . . . . . . Actions | -11 -10 -9 -8 -7 -6 -6 --------- Run | Yrd Mat Mat Mat Fac Fac Ext Total 1796 | 64 153 288 426 101 309 455 Wait 97 | . . 15 28 11 42 1 Move 1418 | 46 139 222 307 81 217 406 Hop 3 | . . . . . . 3 Pick Up 48 | 12 4 7 19 2 4 . Fast Attach 9 | . 1 3 . . 2 3 Attach 29 | 6 . 3 9 1 8 2 Detach 1 | . . . 1 . . . Swap 7 | . . 3 3 . 1 . Drop 17 | . 3 4 5 1 4 . Fire 112 | . 6 30 50 4 22 . Melee . | . . . . . . . Ram 1 | . . . . . 1 . Kick 8 | . . 1 4 1 2 . Crush 6 | . . . . . 6 . Escape Stasis 40 | . . . . . . 40 Rewire . | . . . . . . . Trap . | . . . . . . . Miscellaneous . | . . . . . . . Route ------- -11/Scrapyard -10/Materials (discovered 3 exits: *Mat / Min x2) -9/Materials -8/Materials -7/Factory -6/Factory -6/Extension History --------- Turn | Location | Event 10 | -11/Scrapyard | Discovered new exit (range 16) 71 | -11/Scrapyard | Entered Materials 102 | -10/Materials | Identified exit to Mines 244 | -10/Materials | Discovered new exit (range 15) 262 | -10/Materials | Entered another Materials area 262 | -9/Materials | Evolved 2 slots: Propulsion x2 318 | -9/Materials | Build established: Mutant 575 | -9/Materials | Lost 4 parts (1p2n1w) 619 | -9/Materials | Discovered new exit (range 8) 656 | -9/Materials | Entered another Materials area 656 | -8/Materials | Evolved 2 slots: Propulsion x1, Weapon x1 998 | -8/Materials | Build established: Scavenger-Gunner 1108 | -8/Materials | Lost 4 parts (3n1w) 1221 | -8/Materials | Discovered new exit (range 10) 1254 | -8/Materials | Entered Factory 1254 | -7/Factory | Evolved 2 slots: Utility x1, Weapon x1 1350 | -7/Factory | Discovered new exit (range 5) 1380 | -7/Factory | Entered another Factory area 1380 | -6/Factory | Evolved 2 slots: Utility x2 1402 | -6/Factory | Build established: Gunner 1449 | -6/Factory | Discovered new exit (range 15) 1739 | -6/Factory | Lost 7 parts (1p2n1u3w) 1775 | -6/Factory | Core integrity fell below 50% 1790 | -6/Factory | Entered Extension 1812 | -6/Extension | Lost 4 parts (1p2n1w) 1826 | -6/Extension | Rescued a captive Derelict 1827 | -6/Extension | Rescued a captive Derelict 1871 | -6/Extension | Spotted B-75 Beast 1909 | -6/Extension | Rescued a captive Derelict 1910 | -6/Extension | Rescued a captive Derelict 1917 | -6/Extension | Rescued a captive Derelict 1933 | -6/Extension | Rescued a captive Derelict 1934 | -6/Extension | Rescued a captive Derelict 1949 | -6/Extension | Rescued a captive Derelict 1966 | -6/Extension | Spotted B-75 Beast 1969 | -6/Extension | Core integrity fell below 20% 1974 | -6/Extension | Destroyed by B-75 Beast with Heavy Plasma Cannon Last Messages --------------- >>Traps(Locate) Found 9 traps in 2 arrays: 3x Stasis Trap 6x Stasis Trap Map updated. 01950_ ALERT: Suspicious activity at Terminal E018. Dispatching Investigation squad. 01954_ Connecting with Door Terminal... 01954_ ALERT: Suspicious activity at Terminal E015. Dispatching Investigation squad. 01962_ Connecting with Door Terminal... >>Open(Door) Sealed Heavy Doors opened. 01966_ System corrupted: Matter fused (-8). 01966_ W-25 Informer sends out distress signal. 01966_ Machine disabled. 01966_ VTOL Module destroyed. 01967_ Structural Scanner destroyed. 01969_ Machine disabled. 01971_ Wheel destroyed. Map ----- +----------------------------------------------------+ | #####???????????????## ##????????????????????????? | | #####???????????????## ##????????????????????????? | | ??????????????????#### ##????????????????????????? | | ????????????????###### ##????????????????????????? | | ????????????????####T# ##????????????????????????? | | ????????????????## + ##????????????????????????? | | ????????????????## # # ##????????????????????????? | | ????????????????###### ##????????????????????????? | | ??????????????????#### ##????????????????????????? | | ????????????????????## ##????????????????????????? | | ????????????????????## #########?????????????????? | | ??????????????????####%########## #??????????????? | | #?????????????????#### ### ## ### ##?????????????? | | #?????????????????##" "" "" ""#????????????? | | #?????????????????## " Y Y " " ##???????????? | | #?????????????????## w R ##???????????? | | #################### ##???????????? | | #################### % ###??????????? | | R ?????????? | | u BB ?????????? | | BB ?????????? | | w ????????? | | R ????????? | | ###################; BB ###??????????? | | #################### BB #????????????? | | ??????????????????## @ #????????????? | | ??????????????????## #????????????? | | ??????????????????## #????????????? | | ??????????????????#######T#"""#######????????????? | | ??????????????????######### ? ###????????????????? | | ????????????????????????####?????????????????????? | | | | | | | | | | | | | | | | | | | | | | | | | | | | | | | | | | | | | | | +----------------------------------------------------+ Best States ------------- Heat Dissipation 37 Energy Generation 14 Energy Capacity 265 Matter Stores 300 Matter Capacity 300 Sight Range 16 Terrain Scan Density 10 Armor Coverage 150 Evasion (%) 63 Targeting Accuracy 8 Target Analysis 9 Recoil Reduction 2 Item Schematics ----------------- Neutrino Core | -6/Extension | Hacked Robot Schematics ------------------ None Fabricated ------------ Nothing Repaired ---------- Nothing Alien Tech Used ----------------- None Achievements -------------- None Challenges ------------ None Game ------ Seed StormNeutrinoAnalyzer Manual? 0 Play Time 00:31:49 Cumulative 38.1 hours Start 2025.05.23 @ 16:13:29 End 2025.05.23 @ 16:45:04 Sessions 1 Manual Loads 0 Difficulty Rogue Special Mode None Game No. 80 Rogue 80 Adventurer 0 Explorer 0 Win Type - Total 0 Types 0/0/0/0/0/0/0/0/0/0 Lore% 17 Gallery% 30 Achievement% 26 Wizard Run 0 Options --------- Layout 1 ASCII 0 Keyboard 0 Movement Mouse Keybinds 0 Fullscreen 2 Font 24/Smallcaps Map View 50x35 Zoom Use 0% Tactical HUD 1 Map Filters NONE Filters NONE Steam 1 RUN: b9e6e3d4-8d26-4632-af1a-244c4b8930d7